bitfinex-derivatives/quotes_BNBF0:USTF0_20250507
["timestamp","ask_amount","ask_price","bid_price","bid_amount"]
[1746646242318,0.29059329,599.36,598.15,0.33436428]
[1746646242618,0.33352232,599.66,598.15,0.33436428]
[1746646242819,0.30669056,599.65,598.15,0.33436428]
[1746646243019,0.29058723,599.35,598.15,0.33436428]
[1746646243219,0.30669056,599.65,598.15,0.33436428]
[1746646243420,0.29057874,599.34,598.15,0.33436428]
[1746646243719,0.30669056,599.65,598.15,0.33436428]
[1746646244020,0.29057874,599.33,598.15,0.33436428]
[1746646244322,0.33352232,599.66,598.15,0.33436428]
[1746646244519,0.29057874,599.32,598.15,0.33436428]
[1746646244822,0.33352232,599.66,598.15,0.33436428]
[1746646245016,0.30667584,599.65,598.15,0.33436428]
[1746646245218,0.29057752,599.31,598.15,0.33436428]
[1746646245417,0.30667584,599.65,598.15,0.33436428]
[1746646245623,0.33352232,599.66,598.15,0.33436428]
[1746646246122,0.30667557,599.65,598.15,0.33436428]
[1746646246323,0.5971391,599.65,598.15,0.33436428]
[1746646246921,0.30667557,599.64,598.15,0.33436428]
[1746646247323,0.30667557,599.64,598.15,1.16936428]
[1746646247722,0.29056782,599.63,598.15,1.16936428]
[1746646248222,0.30667557,599.62,598.15,1.16936428]
[1746646248524,0.29056782,599.63,598.15,1.16936428]
[1746646250318,0.29056782,599.63,598.15,1.84836428]
[1746646250517,0.33352232,599.66,598.15,1.84836428]
[1746646250722,0.29055205,599.62,598.15,1.84836428]
[1746646251223,0.30667701,599.61,598.15,1.84836428]
[1746646253922,0.29056418,599.6,598.15,1.84836428]
[1746646256522,0.33352232,599.66,598.15,1.84836428]
[1746646256822,0.29055933,599.59,598.15,1.84836428]
[1746646257020,0.30667529,599.65,598.15,1.84836428]
[1746646257326,0.33352232,599.66,598.15,1.84836428]
[1746646257726,0.30667529,599.65,598.15,1.84836428]
[1746646258125,0.33352232,599.66,598.15,1.84836428]
[1746646258325,0.29055933,599.64,598.15,1.84836428]
[1746646258825,0.30667557,599.63,598.15,1.84836428]
[1746646261631,0.33354457,599.62,598.15,1.84836428]
[1746646262132,0.30673459,599.61,598.15,1.84836428]
[1746646263330,1.24697699,599.6,598.15,1.84836428]
[1746646263532,1.24697699,599.59,598.15,1.84836428]
[1746646263732,2.24026251,599.58,598.15,1.84836428]
[1746646263926,1.24697699,599.57,598.15,1.84836428]
[1746646264129,1.24697699,599.56,598.15,1.84836428]
[1746646264331,1.24697699,599.55,598.15,1.84836428]
[1746646264526,2.24026251,599.54,598.15,1.84836428]
[1746646264728,1.55371158,599.53,598.15,1.84836428]
[1746646264925,2.24026251,599.52,598.15,1.84836428]
[1746646265129,1.24697699,599.51,598.15,1.84836428]
[1746646265325,1.2528609,599.5,598.15,1.84836428]
[1746646265529,2.24614642,599.49,598.15,1.84836428]
[1746646265732,1.2528609,599.48,598.15,1.84836428]
[1746646266043,2.24614642,599.47,598.15,1.84836428]
[1746646266233,1.2528609,599.46,598.15,1.84836428]
[1746646266434,1.2528609,599.45,598.15,1.84836428]
[1746646266635,1.2528609,599.44,598.15,1.84836428]
[1746646266934,2.24614642,599.43,598.15,1.84836428]
[1746646267134,1.2536525,599.42,598.15,1.84836428]
[1746646267334,1.2536525,599.41,598.15,1.84836428]
[1746646267535,1.2536525,599.4,598.15,1.84836428]
[1746646267831,1.2536525,599.39,598.15,1.84836428]
[1746646268036,1.2536525,599.38,598.15,1.84836428]
[1746646268330,2.24693802,599.37,598.15,1.84836428]
[1746646268535,2.24693802,599.36,598.15,1.84836428]
[1746646268730,2.24693802,599.35,598.15,1.84836428]
[1746646269035,1.2536525,599.34,598.15,1.84836428]
[1746646269231,2.24693802,599.33,598.15,1.84836428]
[1746646269434,1.2536525,599.32,598.15,1.84836428]
[1746646269631,1.2536525,599.31,598.15,1.84836428]
[1746646269834,2.24693802,599.3,598.15,1.84836428]
[1746646270034,1.2536525,599.29,598.15,1.84836428]
[1746646270236,1.2536525,599.28,598.15,1.16936428]
[1746646270436,1.2536525,599.27,598.15,1.16936428]
[1746646270637,2.24783772,599.26,598.15,1.16936428]
[1746646270938,1.2545522,599.25,598.15,1.16936428]
[1746646271132,2.24783772,599.24,598.15,1.16936428]
[1746646271333,1.2545522,599.23,598.15,1.16936428]
[1746646271539,1.2545522,599.22,598.15,1.16936428]
[1746646271740,2.24783772,599.21,598.15,1.16936428]
[1746646271939,1.2545522,599.2,598.15,1.16936428]
[1746646272140,1.2545522,599.19,598.15,1.16936428]
[1746646272336,1.2545522,599.18,598.15,1.16936428]
[1746646272540,2.24656574,599.17,598.15,1.16936428]
[1746646272736,1.25328022,599.16,598.15,1.16936428]
[1746646272938,1.25328022,599.15,598.15,1.16936428]
[1746646273241,2.24656574,599.14,598.15,1.16936428]
[1746646273536,1.25328022,599.13,598.15,1.16936428]
[1746646273740,1.25328022,599.12,598.15,1.16936428]
[1746646273939,1.25328022,599.11,598.15,1.16936428]
[1746646274138,1.25328022,599.1,598.15,1.16936428]
[1746646274338,1.25228167,599.09,598.15,0.33436428]
[1746646274541,1.25228167,599.08,598.15,0.33436428]
[1746646274738,2.24556719,599.07,598.15,0.33436428]
[1746646274938,1.25228167,599.06,598.15,0.33436428]
[1746646275137,1.25228167,599.05,598.15,0.33436428]
[1746646275338,2.24556719,599.04,598.15,0.33436428]
[1746646275540,1.25228167,599.03,598.15,0.33436428]
[1746646275742,1.25228167,599.02,598.15,0.33436428]
[1746646275942,2.24556719,599.01,598.15,0.33436428]
[1746646276143,1.25390079,599.0,598.15,0.33436428]
[1746646276341,1.25390079,598.99,598.15,0.33436428]
[1746646276540,2.24718631,598.98,598.15,0.33436428]
[1746646276741,1.25390079,598.97,598.15,0.33436428]
[1746646276938,0.99328552,598.96,598.15,0.33436428]
[1746646277139,1.25390079,598.95,598.15,0.33436428]
[1746646277543,0.99328552,598.94,598.15,0.33436428]
[1746646277737,1.25390079,598.93,598.15,0.33436428]
[1746646277937,0.99328552,598.92,598.15,0.33436428]
[1746646278136,1.25390079,598.91,598.15,0.33436428]
[1746646278645,0.99328552,598.9,598.15,0.33436428]
[1746646278944,0.99328552,598.89,598.15,0.33436428]
[1746646279346,0.99328552,598.88,598.15,0.33436428]
[1746646280048,0.99328552,598.87,598.15,0.33436428]
[1746646280646,0.33354457,599.62,598.15,0.33436428]
[1746646280647,0.99328552,598.86,598.15,0.33436428]
[1746646281048,0.99328552,599.02,598.15,0.33436428]
[1746646281249,1.25439527,599.01,598.15,0.33436428]
[1746646281449,1.25439527,599.0,598.15,0.33436428]
[1746646281649,1.25439527,598.99,598.15,0.33436428]
[1746646281851,1.25439527,598.98,598.15,0.33436428]
[1746646282045,1.25439527,598.97,598.15,0.33436428]
[1746646282351,1.25439527,598.96,598.15,0.33436428]
[1746646282551,1.25439527,598.95,598.15,0.33436428]
[1746646282849,1.25439527,598.94,598.15,0.33436428]
[1746646283053,1.25439527,598.96,598.15,0.33436428]
[1746646283250,1.25439527,598.93,598.15,0.33436428]
[1746646283851,1.25469135,598.92,598.15,0.33436428]
[1746646284051,0.99328552,598.97,598.15,0.33436428]
[1746646284950,1.25508626,598.96,598.15,0.33436428]
[1746646285153,2.24837178,598.95,598.15,0.33436428]
[1746646285349,1.2556552,598.94,598.15,0.33436428]
[1746646285547,0.99328552,598.93,598.15,0.33436428]
[1746646285747,1.2556552,598.92,598.15,0.33436428]
[1746646286249,0.99328552,598.91,598.15,0.33436428]
[1746646286645,0.99328552,598.9,598.15,0.33436428]
[1746646287447,0.99328552,598.89,598.15,0.33436428]
[1746646287950,0.99328552,598.88,598.15,0.33436428]
[1746646288249,0.29075475,599.1,598.15,0.33436428]
[1746646288455,1.2563702,599.09,598.15,0.33436428]
[1746646288654,2.25353755,599.08,598.15,0.33436428]
[1746646288954,1.2563702,599.07,598.15,0.33436428]
[1746646289153,1.2563702,599.06,598.15,0.33436428]
[1746646289460,1.2563702,599.05,598.15,0.33436428]
[1746646289657,2.25353755,599.04,598.15,0.33436428]
[1746646289862,1.2563702,599.03,598.15,0.33436428]
[1746646290157,2.25353755,599.02,598.15,0.33436428]
[1746646290357,1.2563702,599.01,598.15,0.33436428]
[1746646290661,2.25353755,599.0,598.15,0.33436428]
[1746646290856,1.2563702,598.99,598.15,0.33436428]
[1746646291055,1.2563702,598.98,598.15,0.33436428]
[1746646291262,2.25353755,598.97,598.15,0.33436428]
[1746646291454,1.2563702,598.96,598.15,0.33436428]
[1746646291657,1.2563702,598.95,598.15,0.33436428]
[1746646291857,1.2563702,598.94,598.15,0.33436428]
[1746646292056,1.2563702,598.93,598.15,0.33436428]
[1746646292562,0.99716735,598.92,598.15,0.33436428]
[1746646292759,1.2563702,598.91,598.15,0.33436428]
[1746646293160,0.99716735,598.9,598.15,0.33436428]
[1746646293662,0.99716735,598.89,598.15,0.33436428]
[1746646293964,0.99716735,598.88,598.15,0.33436428]
[1746646294559,0.99716735,598.87,598.15,0.33436428]
[1746646294764,0.99716735,598.86,598.15,0.33436428]
[1746646295267,0.29071467,599.03,598.15,0.33436428]
[1746646295462,1.25543398,599.02,598.15,0.33436428]
[1746646295665,1.25543398,599.01,598.15,0.33436428]
[1746646295863,2.25230172,599.0,598.15,0.33436428]
[1746646296063,1.25543398,598.99,598.15,0.33436428]
[1746646296267,1.25485399,598.98,598.15,0.33436428]
[1746646296469,2.25172173,598.97,598.15,0.33436428]
[1746646296668,1.25485399,598.96,598.15,0.33436428]
[1746646296964,2.25172173,598.95,598.15,0.33436428]
[1746646297168,1.25485399,598.94,598.15,0.33436428]
[1746646297766,0.99686774,598.93,598.15,0.33436428]
[1746646297966,1.25485399,598.92,598.15,0.33436428]
[1746646298267,0.99686774,598.91,598.15,0.33436428]
[1746646298470,1.25485399,598.9,598.15,0.33436428]
[1746646298871,0.99686774,598.89,598.15,0.33436428]
[1746646299370,0.99686774,598.88,598.15,0.33436428]
[1746646299579,0.99686774,598.87,598.15,0.33436428]
[1746646300075,0.99686774,598.86,598.15,0.33436428]
[1746646300477,0.99686774,598.85,598.15,0.33436428]
[1746646300878,0.99686774,598.84,598.15,0.33436428]
[1746646301179,0.99686774,598.83,598.15,0.33436428]
[1746646301679,0.99686774,599.02,598.15,0.33436428]
[1746646301881,1.25533948,599.01,598.15,0.33436428]
[1746646302081,2.25220722,599.0,598.15,0.33436428]
[1746646302281,1.25533948,598.99,598.15,0.33436428]
[1746646302477,2.25220722,598.98,598.15,0.33436428]
[1746646302681,1.25533948,598.97,598.15,0.33436428]
[1746646302882,1.25533948,598.96,598.15,0.33436428]
[1746646303080,2.25220722,598.95,598.15,0.33436428]
[1746646303282,2.25220722,598.94,598.15,0.33436428]
[1746646303481,1.25485062,598.93,598.15,0.33436428]
[1746646303782,0.99686774,598.92,598.15,0.33436428]
[1746646304082,1.25485062,598.91,598.15,0.33436428]
[1746646304281,2.25171836,598.91,598.15,0.33436428]
[1746646304478,1.25420534,598.9,598.15,0.33436428]
[1746646304981,0.99686774,598.89,598.15,0.33436428]
[1746646305479,0.99686774,598.88,598.15,0.33436428]
[1746646305779,0.99686774,598.87,598.15,0.33436428]
[1746646306384,0.99686774,598.86,598.15,0.33436428]
[1746646306683,0.99686774,598.85,598.15,0.33436428]
[1746646306983,0.99686774,598.84,598.15,0.33436428]
[1746646307986,0.99686774,598.83,598.15,0.33436428]
[1746646308889,0.2907256,599.03,598.15,0.33436428]
[1746646309689,0.99567924,599.02,598.15,0.33436428]
[1746646310084,0.99567924,599.01,598.15,0.33436428]
[1746646310289,0.99567924,599.0,598.15,0.33436428]
[1746646310988,0.99567924,598.99,598.15,0.33436428]
[1746646311288,0.99567924,598.98,598.15,0.33436428]
[1746646311790,0.99567924,598.97,598.15,0.33436428]
[1746646312088,0.99567924,598.96,598.15,0.33436428]
[1746646312684,0.99567924,598.95,598.15,0.33436428]
[1746646312889,0.99567924,598.94,598.15,0.33436428]
[1746646313587,0.99567924,598.93,598.15,0.33436428]
[1746646313989,0.99567924,598.92,598.15,0.33436428]
[1746646314584,0.99567924,598.91,598.15,0.33436428]
[1746646315189,0.99567924,598.9,598.15,0.33436428]
[1746646315590,0.29075354,599.03,598.15,0.33436428]
[1746646316391,0.33354457,599.62,598.15,0.33436428]
[1746646316589,0.29061271,599.11,598.15,0.33436428]
[1746646316887,0.33354457,599.62,598.15,0.33436428]
[1746646317194,0.29061271,599.11,598.15,0.33436428]
[1746646317491,0.33354457,599.62,598.15,0.33436428]
[1746646317791,0.29061271,599.11,598.15,0.33436428]
[1746646317986,0.30678854,599.61,598.15,0.33436428]
[1746646318292,0.33354457,599.62,598.15,0.33436428]
[1746646318293,0.29061392,599.11,598.15,0.33436428]
[1746646318489,0.3335557,599.6,598.15,0.33436428]
[1746646318792,0.29061514,599.11,598.15,0.33436428]
[1746646319092,0.30678684,599.59,598.15,0.33436428]
[1746646319288,0.33356683,599.58,598.15,0.33436428]
[1746646319592,0.30678684,599.57,598.15,1.36836428]
[1746646319787,0.33357795,599.56,598.15,1.36836428]
[1746646320292,0.30678684,599.55,598.15,1.36836428]
[1746646320489,0.33358908,599.54,598.15,1.36836428]
[1746646320992,0.30678684,599.53,598.15,1.36836428]
[1746646321195,0.33360021,599.52,598.15,1.36836428]
[1746646321595,0.30678684,599.51,598.15,1.36836428]
[1746646321788,0.33361134,599.5,598.15,1.36836428]
[1746646321992,0.30678684,599.49,598.15,1.36836428]
[1746646322191,0.33362247,599.48,598.15,1.36836428]
[1746646322695,0.30678684,599.47,598.15,1.36836428]
[1746646322995,0.5974129,599.47,598.15,1.36836428]
[1746646323290,0.30678684,599.46,598.15,1.36836428]
[1746646324097,0.64042044,599.46,598.15,1.36836428]
[1746646324499,0.33363916,599.45,598.15,1.36836428]
[1746646324695,0.640426,599.45,598.15,1.36836428]
[1746646324900,0.30678684,599.44,598.15,1.36836428]
[1746646325199,0.3336503,599.43,598.15,1.36836428]
[1746646325803,0.59743802,599.42,598.15,1.36836428]
[1746646326203,0.29064669,599.42,598.15,1.36836428]
[1746646327302,0.62430255,599.42,598.15,1.36836428]
[1746646328607,0.33365586,599.42,598.15,1.36836428]
[1746646329009,0.29064912,599.41,598.15,1.36836428]
[1746646331511,0.33365586,599.42,598.15,1.36836428]
[1746646331708,0.33365586,599.42,598.15,2.08336428]
[1746646331911,0.29062727,599.4,598.15,2.08336428]
[1746646334514,0.33365586,599.42,598.15,2.08336428]
[1746646334709,0.29061999,599.39,598.15,2.08336428]
[1746646335916,0.29061999,599.39,598.15,3.03536428]
[1746646337519,0.33365586,599.42,598.15,3.03536428]
[1746646337821,0.29061999,599.38,598.15,3.03536428]
[1746646340519,0.33365586,599.42,598.15,3.03536428]
[1746646340916,0.29061999,599.37,598.15,3.03536428]
[1746646343323,0.30673886,599.36,598.15,3.03536428]
[1746646343524,0.33365586,599.42,598.15,3.03536428]
[1746646343717,0.33365586,599.42,598.15,3.71736428]
[1746646343918,0.29062363,599.35,598.15,3.71736428]
[1746646344122,0.33365586,599.42,598.15,3.71736428]
[1746646344325,0.29061756,599.34,598.15,3.71736428]
[1746646344724,0.33365586,599.42,598.15,3.71736428]
[1746646344925,0.29061756,599.33,598.15,3.71736428]
[1746646345226,0.33365586,599.42,598.15,3.71736428]
[1746646345623,0.29061756,599.32,598.15,3.71736428]
[1746646345821,0.33365586,599.42,598.15,3.71736428]
[1746646346027,0.29061756,599.31,598.15,3.71736428]
[1746646346329,0.33365586,599.42,598.15,3.71736428]
[1746646346630,0.29061878,599.3,598.15,3.71736428]
[1746646346828,0.33365586,599.42,598.15,3.71736428]
[1746646347025,0.30672813,599.41,598.15,3.71736428]
[1746646347227,0.29061756,599.29,598.15,3.71736428]
[1746646347427,0.33365586,599.42,598.15,3.71736428]
[1746646347732,0.29061878,599.28,598.15,3.71736428]
[1746646348031,0.33365586,599.42,598.15,3.71736428]
[1746646348230,0.29061756,599.27,598.15,3.71736428]
[1746646348531,0.33365586,599.42,598.15,3.71736428]
[1746646348831,0.29061756,599.26,598.15,3.71736428]
[1746646349227,0.33365586,599.42,598.15,3.71736428]
[1746646349425,0.29061271,599.25,598.15,3.71736428]
[1746646349632,0.33365586,599.42,598.15,3.71736428]
[1746646350933,0.29050596,599.41,598.15,3.71736428]
[1746646352535,0.33365586,599.42,598.15,3.71736428]
[1746646353132,0.2904999,599.41,598.15,3.71736428]
[1746646355537,0.33365586,599.42,598.15,3.71736428]
[1746646355838,0.29060057,599.4,598.15,3.71736428]
[1746646358643,0.33365586,599.42,598.15,3.71736428]
[1746646358840,0.29062727,599.39,598.15,3.71736428]
[1746646359042,0.99830099,599.38,598.15,3.71736428]
[1746646359540,0.29062727,599.39,598.15,3.71736428]
[1746646359541,0.99830099,599.37,598.15,3.71736428]
[1746646360141,0.99830099,599.36,598.15,3.71736428]
[1746646360343,1.25859363,599.35,598.15,3.71736428]
[1746646360543,1.25859363,599.34,598.15,3.71736428]
[1746646360737,2.25689462,599.33,598.15,3.71736428]
[1746646360937,1.25859363,599.32,598.15,3.71736428]
[1746646361141,1.25859363,599.31,598.15,3.71736428]
[1746646361442,2.25689462,599.3,598.15,3.71736428]
[1746646361642,1.25859363,599.29,598.15,3.71736428]
[1746646361842,1.25859363,599.28,598.15,3.71736428]
[1746646362042,1.25859363,599.27,598.15,3.71736428]
[1746646362237,1.25859363,599.26,598.15,3.71736428]
[1746646362441,1.25859363,599.25,598.15,3.71736428]
[1746646362641,1.25859363,599.24,598.15,3.71736428]
[1746646362845,1.25859363,599.23,598.15,3.71736428]
[1746646363042,1.25859363,599.22,598.15,3.71736428]
[1746646363343,1.25859363,599.21,598.15,3.71736428]
[1746646363642,1.25859363,599.2,598.15,3.71736428]
[1746646363841,1.25859363,599.19,598.15,3.71736428]
[1746646364038,1.25859363,599.18,598.15,3.71736428]
[1746646364236,1.25859363,599.17,598.15,3.71736428]
[1746646364438,1.25859363,599.16,598.15,3.71736428]
[1746646364744,1.25859363,599.15,598.15,3.71736428]
[1746646365043,1.25859363,599.14,598.15,3.71736428]
[1746646365242,1.25859363,599.13,598.15,3.71736428]
[1746646365442,1.25859363,599.12,598.15,3.71736428]
[1746646365642,1.25859363,599.11,598.15,3.71736428]
[1746646365841,1.2570476,599.1,598.15,3.71736428]
[1746646366042,1.2570476,599.09,598.15,3.71736428]
[1746646366239,1.2570476,599.08,598.15,3.71736428]
[1746646366437,1.2570476,599.07,598.15,3.71736428]
[1746646366638,1.2570476,599.06,598.15,3.71736428]
[1746646366838,1.2570476,599.05,598.15,3.71736428]
[1746646367042,1.2570476,599.04,598.15,3.71736428]
[1746646367242,1.2570476,599.03,598.15,3.71736428]
[1746646367544,1.2570476,599.02,598.15,3.71736428]
[1746646367742,1.2570476,599.01,598.15,3.71736428]
[1746646367942,1.2570476,599.0,598.15,3.71736428]
[1746646368143,1.2570476,598.99,598.15,3.71736428]
[1746646368442,1.2570476,598.98,598.15,3.71736428]
[1746646368641,1.2570476,598.97,598.15,3.71736428]
[1746646368944,2.25550298,598.96,598.15,3.71736428]
[1746646369138,1.2570476,598.95,598.15,3.71736428]
[1746646369341,1.2570476,598.94,598.15,3.71736428]
[1746646369539,1.2570476,598.93,598.15,3.71736428]
[1746646369740,2.25550298,598.92,598.15,3.71736428]
[1746646369939,1.2570476,598.91,598.15,3.71736428]
[1746646370139,0.99845538,598.91,598.15,3.71736428]
[1746646370743,0.99845538,598.9,598.15,3.71736428]
[1746646371246,0.99845538,598.89,598.15,3.71736428]
[1746646371746,0.99845538,598.88,598.15,3.71736428]
[1746646372345,0.99845538,598.87,598.15,3.71736428]
[1746646373345,0.29069403,599.13,598.15,3.71736428]
[1746646373541,1.26041958,599.12,598.15,3.71736428]
[1746646373741,1.26041958,599.11,598.15,3.71736428]
[1746646374044,2.25979331,599.1,598.15,3.71736428]
[1746646374246,2.25979331,599.09,598.15,3.71736428]
[1746646374440,1.26041958,599.08,598.15,3.71736428]
[1746646374640,2.25979331,599.07,598.15,3.71736428]
[1746646374843,2.25979331,599.06,598.15,3.71736428]
[1746646375044,1.26041958,599.05,598.15,3.71736428]
[1746646375243,1.26041958,599.04,598.15,3.71736428]
[1746646375442,2.25979331,599.03,598.15,3.71736428]
[1746646375642,1.26041958,599.02,598.15,3.71736428]
[1746646375841,2.25979331,599.01,598.15,3.71736428]
[1746646376047,1.26041958,599.0,598.15,3.71736428]
[1746646376248,1.26041958,598.99,598.15,3.71736428]
[1746646376550,0.99937373,599.0,598.15,3.71736428]
[1746646376551,1.26041958,598.98,598.15,3.71736428]
[1746646376847,1.26041958,598.97,598.15,3.71736428]
[1746646377048,1.26041958,598.96,598.15,3.71736428]
[1746646377248,1.26041958,598.95,598.15,3.71736428]
[1746646377549,1.26041958,598.94,598.15,3.71736428]
[1746646377847,1.26041958,598.93,598.15,3.71736428]
[1746646378048,0.99937373,598.92,598.15,3.71736428]
[1746646378650,0.99937373,598.91,598.15,3.71736428]
[1746646379350,0.99937373,598.9,598.15,3.71736428]
[1746646380056,0.99937373,598.89,598.15,3.71736428]
[1746646380652,0.99937373,598.88,598.15,3.71736428]
[1746646381045,0.99937373,598.87,598.15,3.71736428]
[1746646381946,0.29069403,599.13,598.15,3.71736428]
[1746646381947,0.99937373,598.86,598.15,3.71736428]
[1746646382450,0.29069403,599.13,598.15,3.71736428]
[1746646382651,2.25928303,599.12,598.15,3.71736428]
[1746646382849,0.2907086,599.09,598.15,3.71736428]
[1746646383048,1.26009399,599.08,598.15,3.71736428]
[1746646383251,1.26009399,599.07,598.15,3.71736428]
[1746646383445,1.26009399,599.06,598.15,3.71736428]
[1746646383646,1.26009399,599.05,598.15,3.71736428]
[1746646383844,1.26009399,599.04,598.15,3.71736428]
[1746646384049,2.25928303,599.03,598.15,3.71736428]
[1746646384345,1.26009399,599.02,598.15,3.71736428]
[1746646384550,1.26009399,599.01,598.15,3.71736428]
[1746646384747,1.26009399,599.0,598.15,3.71736428]
[1746646384950,1.26009399,598.99,598.15,3.71736428]
[1746646385147,1.26009399,598.98,598.15,3.71736428]
[1746646385351,2.25928303,598.97,598.15,3.71736428]
[1746646385553,1.26009399,598.96,598.15,3.71736428]
[1746646385852,1.26009399,598.95,598.15,3.71736428]
[1746646386153,1.26009399,598.94,598.15,3.71736428]
[1746646386349,1.26009399,598.93,598.15,3.71736428]
[1746646386549,1.26009399,598.92,598.15,3.71736428]
[1746646386749,1.26009399,598.91,598.15,3.71736428]
[1746646387054,1.26187053,598.9,598.15,3.71736428]
[1746646387253,1.26187053,598.89,598.15,3.71736428]
[1746646387455,2.26105957,598.88,598.15,3.71736428]
[1746646387653,1.26187053,598.87,598.15,3.71736428]
[1746646387951,2.26105957,598.86,598.15,3.71736428]
[1746646388253,1.26187053,598.85,598.15,3.71736428]
[1746646388448,2.26105957,598.84,598.15,3.71736428]
[1746646388654,1.26187053,598.83,598.15,3.71736428]
[1746646388855,0.99918904,598.84,598.15,3.71736428]
[1746646389351,0.99918904,598.83,598.15,3.71736428]
[1746646389553,0.99918904,598.82,598.15,3.71736428]
[1746646390055,0.99918904,598.81,598.15,3.71736428]
[1746646390557,0.29071225,599.09,598.15,3.71736428]
[1746646390858,1.26466959,599.08,598.15,3.71736428]
[1746646391155,1.26466959,599.07,598.15,3.71736428]
[1746646391452,2.2651829,599.06,598.15,3.71736428]
[1746646391656,1.26466959,599.05,598.15,3.71736428]
[1746646391856,2.2651829,599.04,598.15,3.71736428]
[1746646392057,1.26466959,599.03,598.15,3.71736428]
[1746646392356,1.00051331,599.04,598.15,3.71736428]
[1746646392357,1.26300722,599.02,598.15,3.71736428]
[1746646392658,2.26352053,599.01,598.15,3.71736428]
[1746646392851,1.26300722,599.0,598.15,3.71736428]
[1746646393157,1.26300722,598.99,598.15,3.71736428]
[1746646393353,2.26352053,598.98,598.15,3.71736428]
[1746646393553,1.26300722,598.97,598.15,3.71736428]
[1746646393753,2.26352053,598.96,598.15,3.71736428]
[1746646393952,2.26352053,598.95,598.15,3.71736428]
[1746646394255,1.26300722,598.94,598.15,3.71736428]
[1746646394452,1.26300722,598.93,598.15,3.71736428]
[1746646394659,2.26352053,598.92,598.15,3.71736428]
[1746646394859,1.26300722,598.91,598.15,3.71736428]
[1746646395059,2.26352053,598.9,598.15,3.71736428]
[1746646395359,1.26300722,598.89,598.15,3.71736428]
[1746646395554,1.00051331,598.9,598.15,3.71736428]
[1746646395858,2.26567697,598.89,598.15,3.71736428]
[1746646396056,1.00051331,598.89,598.15,3.71736428]
[1746646396256,1.00051331,598.88,598.15,3.71736428]
[1746646396459,1.26562965,598.87,598.15,3.71736428]
[1746646396961,1.00051331,598.86,598.15,3.71736428]
[1746646397562,1.00051331,598.85,598.15,3.71736428]
[1746646398166,1.00138252,598.84,598.15,3.71736428]
[1746646398564,1.00138252,598.83,598.15,3.71736428]
[1746646398860,1.00138252,598.82,598.15,3.71736428]
[1746646399466,1.00138252,598.81,598.15,3.71736428]
[1746646400161,1.00138252,599.09,598.15,3.71736428]
[1746646400465,1.26520825,599.08,598.15,3.71736428]
[1746646400666,2.26659077,599.07,598.15,3.71736428]
[1746646400865,1.26520825,599.06,598.15,3.71736428]
[1746646401066,2.26659077,599.05,598.15,3.71736428]
[1746646401363,1.26520825,599.04,598.15,3.71736428]
[1746646401561,1.26520825,599.03,598.15,3.71736428]
[1746646401766,1.26673764,599.02,598.15,3.71736428]
[1746646401969,2.26812016,599.01,598.15,3.71736428]
[1746646402168,1.26673764,599.0,598.15,3.71736428]
[1746646402363,1.26673764,598.99,598.15,3.71736428]
[1746646402566,1.26673764,598.98,598.15,3.71736428]
[1746646402765,1.26673764,598.97,598.15,3.71736428]
[1746646402960,2.26812016,598.96,598.15,3.71736428]
[1746646403263,1.26673764,598.95,598.15,3.71736428]
[1746646403461,2.26812016,598.94,598.15,3.71736428]
[1746646403666,1.26673764,598.93,598.15,3.71736428]
[1746646403962,2.26812016,598.92,598.15,3.71736428]
[1746646404161,1.26650546,598.91,598.15,3.71736428]
[1746646405066,1.00138252,598.92,598.15,3.71736428]
[1746646405266,1.26665433,598.91,598.15,3.71736428]
[1746646405571,1.26665433,598.9,598.15,3.71736428]
[1746646405768,2.26803685,598.89,598.15,3.71736428]
[1746646405965,1.26665433,598.88,598.15,3.71736428]
[1746646406165,1.26665433,598.87,598.15,3.71736428]
[1746646406368,1.00138252,598.86,598.15,3.71736428]
[1746646407070,0.29070982,599.08,598.15,3.71736428]
[1746646407071,1.00138252,598.85,598.15,3.71736428]
[1746646408870,1.00138252,598.84,598.15,3.71736428]
[1746646409474,1.00138252,598.83,598.15,3.71736428]
[1746646410477,1.00138252,598.82,598.15,3.71736428]
[1746646410978,0.29071346,599.08,598.15,3.71736428]
[1746646411177,1.26525791,599.07,598.15,3.71736428]
[1746646411474,1.26525791,599.06,598.15,3.71736428]
[1746646411672,2.2665058,599.05,598.15,3.71736428]
[1746646411877,2.2665058,599.04,598.15,3.71736428]
[1746646412075,2.2665058,599.03,598.15,3.71736428]
[1746646412275,1.26525791,599.02,598.15,3.71736428]
[1746646412481,1.00124789,599.03,598.15,3.71736428]
[1746646412482,2.2665058,599.01,598.15,3.71736428]
[1746646412683,1.26525791,599.0,598.15,3.71736428]
[1746646412882,2.2665058,598.99,598.15,3.71736428]
[1746646413077,1.26525791,598.98,598.15,3.71736428]
[1746646413277,1.26525791,598.97,598.15,3.71736428]
[1746646413482,1.00124789,598.96,598.15,3.71736428]
[1746646413783,1.00124789,598.95,598.15,3.71736428]
[1746646414381,1.00124789,598.94,598.15,3.71736428]
[1746646414886,1.00124789,598.93,598.15,3.71736428]
[1746646415586,0.33365586,599.42,598.15,3.71736428]
[1746646415781,0.29067218,599.2,598.15,3.71736428]
[1746646415987,1.26327729,599.19,598.15,3.71736428]
[1746646416188,1.26327729,599.18,598.15,3.71736428]
[1746646416385,2.26408338,599.17,598.15,3.71736428]
[1746646416588,2.26408338,599.16,598.15,3.71736428]